{"text_format":"1","workbook":"xlsx","n_sheets":12,"sheets":["事前調査票","ヒアリング調査票","継続訪問報告書","プルダウンリスト","業種リスト","中間ファイル","人材会社_企業情報シート","大企業連携_企業情報シート","人材会社_記入例(雇用契約(フルタイム)以外)","人材会社_記入例(雇用契約(フルタイム))","大企業_記入例(雇用契約(フルタイム))","大企業_記入例(雇用契約(フルタイム)以外)"],"not_rendered":{"charts":0,"images":0,"macros":1,"external_links":2,"defined_names":56,"comments":0,"pivot_tables":0},"unopened":[],"bounds":{"document_bytes":16777216,"sheet_cells":100000,"rows_first":2000,"rows_last":500,"rows_between":2000,"halvings":0,"cell_chars":16384,"cell_head_chars":4096},"cells_cut":0,"cells_raw":0,"read":"whole","date_system":"1900"}

{"sheet":"事前調査票","index":0,"n_rows":37,"n_cols":7,"rows_kept":37,"cut":false,"hidden":false,"merged":[[34,2,34,3],[34,4,34,5],[36,0,36,5],[12,0,13,0],[19,1,19,5],[23,0,25,0],[26,0,28,0],[15,1,15,5],[16,0,18,0],[18,2,18,5],[19,0,22,0],[29,0,29,5],[30,1,30,2],[30,4,30,5],[32,4,32,5],[32,1,32,2],[0,0,0,5],[1,0,1,5],[2,0,2,5],[3,1,3,5],[4,2,4,5],[5,1,5,2],[5,4,5,5],[6,1,6,5],[7,2,7,3],[8,2,8,3],[9,1,9,5],[10,1,10,5],[12,2,12,5],[13,2,13,5],[16,2,16,5],[17,2,17,5],[31,1,31,2],[31,4,31,5],[20,2,20,5],[21,2,21,5],[22,2,22,5]]}
["愛知県プロフェッショナル人材戦略拠点　宛"]
["企業訪問　訪問前　調査票"]
["本シートは訪問前に本拠点〈E-Mail：aichi-projinzai@aibsc.jp〉へ\nご送付いただきますようお願いいたします。（Excel形式にてご送付いただけますと幸いです。）"]
["企  業  名"]
["郵便番号・住所","〒"]
["代表電話",null,null,"ＦＡＸ"]
["Ｈ    Ｐ"]
["代  表  者","役職",null,null,"氏名"]
["連絡担当者","役職",null,null,"氏名"]
["電　話（連絡担当者）"]
["E-Mail（連絡担当者）"]
["資  本  金",null,"売  上  高",null,"創業年(西暦)"]
["業　　種","（大分類）",null,null,null,null,"この行は選択です"]
[null,"（中分類）",null,null,null,null,"この行は選択です"]
["従業員種別(人数)","正社員",null,"その他",null,{"$f":"C15+E15","v":0}]
["経営理念"]
["自社の事業概要","主な得意先"]
[null,"製品・サービス"]
[null,"自社の特徴\n（他社との差別化ポイント）"]
["解決したい\n経営課題","今後の事業成長に向けて解決したい経営課題上位3つをご記入ください。"]
[null,"課題１"]
[null,"課題２"]
[null,"課題３"]
["経営支援機関の\n利用経験","　　初めて","　　商工会、商工会議所",null,"　　よろず支援拠点"]
[null,"　　金融機関","　　あいち産業振興機構",null,"　　中小企業基盤整備機構"]
[null,"　　その他（　　　　　　　　　　　　　　　　　　　）"]
["経営相談している\n相手","　　いない","　　金融機関","　　行政による経営相談窓口"]
[null,"　　顧問（税理士、社労士、中小企業診断士など）"]
[null,"　　その他（　　　　　　　　　　　　　　　　　　　）"]
["※金融機関からのご紹介によりご相談を希望される場合は、本シートを金融機関担当者へご送付ください。\n　金融機関様におかれましては、本シート受領後、以下、ご担当者連絡先をご記入の上、本拠点へご送付ください。"]
["金融機関名",null,null,"支店名"]
["部署名・役職",null,null,"担当者名"]
["E-Mail",null,null,"電話番号"]
[]
["＜拠点処理欄＞"," 接触経路"]
["訪問日時（予定）",null,"：","訪問者（予定）"]
[" 公益財団法人あいち産業振興機構　愛知県プロフェッショナル人材戦略拠点\n  【連絡先】アシスタント 柳田　\n  （E-Mail）aichi-projinzai@aibsc.jp　（電話）052-433-1810　（FAX）052-563-5777       202205_改定版"]

{"sheet":"ヒアリング調査票","index":1,"n_rows":39,"n_cols":25,"rows_kept":39,"cut":false,"hidden":true,"merged":[[29,14,29,23],[29,8,29,13],[29,5,29,7],[29,0,29,4],[31,3,31,7],[31,8,31,23],[23,0,23,2],[24,0,24,2],[25,0,25,2],[23,3,23,23],[24,3,24,23],[25,3,25,23],[26,0,26,4],[26,8,26,12],[26,13,26,23],[26,5,26,7],[14,3,14,5],[14,6,14,23],[15,3,15,5],[15,6,15,23],[16,3,16,5],[16,6,16,10],[16,11,16,12],[16,13,16,16],[16,19,16,23],[0,21,0,23],[0,15,0,17],[1,21,1,23],[2,0,2,23],[5,21,5,23],[5,18,5,20],[5,15,5,17],[5,12,5,14],[5,9,5,11],[5,3,5,8],[3,0,3,2],[4,0,4,2],[5,0,5,2],[4,3,4,11],[4,12,4,14],[1,15,1,20],[3,3,3,6],[3,7,3,10],[3,11,3,14],[3,15,3,18],[3,19,3,23],[11,3,11,6],[12,3,12,6],[7,3,7,6],[7,13,7,23],[8,14,8,23],[9,14,9,23],[13,20,13,23],[13,16,13,19],[4,15,4,18],[4,20,4,23],[17,3,17,23],[27,0,27,2],[28,0,28,2],[18,0,20,2],[18,3,18,5],[19,3,19,5],[20,3,20,5],[21,0,21,2],[6,0,6,2],[6,11,6,12],[6,3,6,10],[6,13,6,23],[13,10,13,15],[13,8,13,9],[8,0,11,2],[7,0,7,2],[11,12,11,16],[12,12,12,16],[11,17,11,23],[12,17,12,23],[7,11,7,12],[12,0,12,2],[13,0,13,2],[10,3,10,6],[14,0,15,2],[13,3,13,7],[10,14,10,23],[30,3,30,13],[7,7,7,10],[8,12,8,13],[9,12,9,13],[10,12,10,13],[22,0,22,23],[8,7,8,11],[9,7,9,11],[10,7,10,11],[11,7,11,11],[12,7,12,11],[18,6,18,23],[19,6,19,23],[20,6,20,23],[21,3,21,23],[8,3,8,6],[9,3,9,6],[30,14,30,23],[27,3,27,23],[28,3,28,23],[30,0,31,2],[33,3,33,23],[32,8,32,13],[35,13,35,15],[37,13,37,15],[35,4,35,12],[36,4,36,12],[37,4,37,12],[35,16,35,23],[36,16,36,23],[37,16,37,23],[34,0,34,23],[35,0,35,3],[36,0,36,3],[37,0,37,3],[36,13,36,15],[32,0,32,4],[32,5,32,7],[32,14,32,23],[33,0,33,2]]}
[null,null,null,null,null,null,null,null,null,null,null,null,null,null,"入力更新日：",null,null,null,null,null,"記録者："]
[null,null,null,null,null,null,null,null,null,null,null,null,null,null,"接触経路："]
["企業訪問ヒアリング調査票（初回）",null,null,null,null,null,null,null,null,null,null,null,null,null,null,null,null,null,null,null,null,null,null,null,"↓プルダウンリストにない同行者は訪問者の欄外に追記ください"]
["訪問者"]
["面談日",null,null,null,null,null,null,null,null,null,null,null,"面談時間",null,null,"：",null,null,null,"～"]
["面談方法",null,null,null,null,null,null,null,null,"面談目的"]
["企業名",null,null,null,null,null,null,null,null,null,null,"〒",null,"〒"]
["代表者\n役職：氏名",null,null,null,null,null,null,null,null,null,null,"住所"]
["対応者\n役職：氏名",null,null,null,null,null,null,null,null,null,null,null,"代表TEL"]
[null,null,null,null,null,null,null,null,null,null,null,null,"FAX"]
[null,null,null,null,null,null,null,null,null,null,null,null,"ＨＰ"]
[null,null,null,null,null,null,null,null,null,null,null,null,"電話(連絡担当者)"]
["連絡担当者",null,null,null,null,null,null,null,null,null,null,null,"E-mail(連絡担当者)"]
["資本金",null,null,null,null,null,null,null,"売上高",null,null,null,null,null,null,null,"創業年(西暦)"]
["業種",null,null,"(大分類)"]
[null,null,null,"(小分類)"]
["従業員種別",null,null,"正社員",null,null,null,null,null,null,null,"その他",null,null,null,null,null,"合計",null,0]
["経営理念"]
["自社の事業概要",null,null,"主な得意先"]
[null,null,null,"製品・\nサービス"]
[null,null,null,"自社の特徴\n(他社との差別化ポイント)"]
["ヒアリングに基づく経営概況"]
["市場創造及び人材育成等における解決すべき経営課題（具体的に）"]
["市場創造"]
["人材育成"]
["中長期的な方向性"]
["人材の取り繋ぎ",null,null,null,null,null,null,null,"取り繋ぎ先"]
["プロ人材\n求人概要"]
["事業継承対策"]
["経営支援の必要性",null,null,null,null,null,null,null,"継続フォローのための連絡方法"]
["フォローする支援機関"]
[null,null,null,"その他の場合は右記"]
["再訪問の有無",null,null,null,null,null,null,null,"再訪問日時またはフォロー連絡予定月"]
["特記事項"]
["金融機関連絡先"]
["金融機関名",null,null,null,null,null,null,null,null,null,null,null,null,"支店名"]
["部署名・役職",null,null,null,null,null,null,null,null,null,null,null,null,"担当者名"]
["Ｅ－Ｍａｉｌ",null,null,null,null,null,null,null,null,null,null,null,null,"電話番号"]
[null,null,null,null,null,null,null,null,null,null,null,null,null,null,null,null,null,null,null,null,null,null,null,"202205_改定版"]

{"sheet":"継続訪問報告書","index":2,"n_rows":80,"n_cols":31,"rows_kept":80,"cut":false,"hidden":true,"merged":[[16,3,16,23],[17,0,17,23],[20,0,20,23],[22,0,22,23],[13,7,13,8],[13,9,13,11],[13,3,13,6],[14,6,14,23],[15,6,15,23],[14,3,14,5],[15,3,15,5],[13,17,13,20],[13,21,13,23],[13,12,13,13],[13,14,13,16],[8,12,8,13],[9,12,9,13],[10,12,10,13],[4,0,4,2],[4,3,4,11],[4,15,4,18],[3,0,3,2],[3,3,3,6],[3,7,3,10],[3,11,3,14],[3,15,3,18],[0,15,0,17],[0,21,0,23],[1,15,1,20],[1,21,1,23],[2,0,2,23],[5,21,5,23],[5,18,5,20],[5,9,5,11],[5,12,5,14],[5,15,5,17],[4,20,4,23],[3,19,3,23],[5,0,5,2],[5,3,5,8],[11,3,11,6],[11,7,11,11],[11,12,11,16],[6,0,6,2],[6,3,6,10],[6,11,6,12],[6,13,6,23],[7,0,7,2],[7,3,7,6],[7,7,7,10],[7,11,7,12],[7,13,7,23],[11,17,11,23],[12,0,12,2],[12,3,12,6],[12,7,12,11],[12,12,12,16],[12,17,12,23],[8,0,11,2],[8,3,8,6],[8,7,8,11],[8,14,8,23],[9,3,9,6],[9,7,9,11],[9,14,9,23],[10,3,10,6],[10,7,10,11],[10,14,10,23],[29,16,29,23],[21,0,21,23],[18,0,18,23],[23,0,23,23],[26,0,26,23],[27,0,27,23],[28,0,28,23],[25,16,25,23],[24,0,24,7],[25,0,25,7],[25,8,25,15],[24,8,24,23],[31,0,31,3],[31,4,31,12],[31,13,31,15],[31,16,31,23],[13,0,13,2],[30,0,30,3],[30,4,30,12],[30,13,30,15],[30,16,30,23],[16,0,16,2],[19,0,19,6],[19,7,19,23],[14,0,15,2],[29,0,29,3],[29,4,29,12],[29,13,29,15]]}
[null,null,null,null,null,null,null,null,null,null,null,null,null,null,"入力更新日：",null,null,null,null,null,"記録者："]
[null,null,null,null,null,null,null,null,null,null,null,null,null,null,"接触経路："]
["企業訪問ヒアリング調査票（継続訪問）",null,null,null,null,null,null,null,null,null,null,null,null,null,null,null,null,null,null,null,null,null,null,null,"↓プルダウンリストにない同行者は訪問者の欄外に追記ください"]
["訪問者"]
["面談日",null,null,null,null,null,null,null,null,null,null,null,"面談時間",null,null,null,null,null,null,"～"]
["面談方法",null,null,null,null,null,null,null,null,"面談目的"]
["企業名",null,null,null,null,null,null,null,null,null,null,"〒",null,"〒"]
["代表者\n役職：氏名",null,null,null,null,null,null,null,null,null,null,"住所"]
["対応者\n役職：氏名",null,null,null,null,null,null,null,null,null,null,null,"代表TEL"]
[null,null,null,null,null,null,null,null,null,null,null,null,"FAX"]
[null,null,null,null,null,null,null,null,null,null,null,null,"ＨＰ"]
[null,null,null,null,null,null,null,null,null,null,null,null,"電話(連絡担当者)"]
["連絡担当者",null,null,null,null,null,null,null,null,null,null,null,"E-mail(連絡担当者)"]
["初回訪問日",null,null,null,null,null,null,"資本金",null,null,null,null,"売上高",null,null,null,null,"創業年(西暦)）"]
["業種",null,null,"(大分類)"]
[null,null,null,"(小分類)"]
["テーマ"]
["【ヒアリングに基づく経営概況:現状と課題等】"]
[]
["【継続フォローの必要性】"]
["＜経営支援の内容＞（人材以外）"]
[]
["・次回までの課題"]
[]
["・継続フォローのための連絡方法"]
["・フォローする支援機関"]
["・特記事項"]
[]
["金融機関連絡先"]
["金融機関名",null,null,null,null,null,null,null,null,null,null,null,null,"支店名"]
["部署名・役職",null,null,null,null,null,null,null,null,null,null,null,null,"担当者名"]
["E-Mail",null,null,null,null,null,null,null,null,null,null,null,null,"電話番号"]
[null,null,null,null,null,null,null,null,null,null,null,null,null,null,null,null,null,null,null,null,null,null,null,"202205_改定版"]
[]
[]
[]
[]
[]
[]
[]
[]
[]
[]
[]
[]
[]
[]
[]
[]
[]
[]
[]
[]
[]
[]
[]
[]
[]
[]
[]
[]
[]
[]
[]
[]
[]
[]
[]
[]
[]
[]
[]
[]
[]
[]
[]
[]
[]
[]
[null,null,null,null,null,null,null,null,null,null,null,null,null,null,null,null,null,null,null,null,null,null,null,null,null,null,null,null,null,null,"J"]

{"sheet":"プルダウンリスト","index":3,"n_rows":21,"n_cols":31,"rows_kept":21,"cut":false,"hidden":true,"merged":[]}
[null,null,null,null,"使用しない",null,null,null,null,null,null,null,null,null,null,null,null,null,null,null,null,null,null,"雇用形態","ニーズ","職種","役職","年収","資本金","従業員数","売上高"]
["紹介元・接触経路","訪問者","面談方法","目的（新規）","業種","有無","取り繋ぎ先","要不要","連絡方法","支援機関"]
["拠点独自リストアップ","中川Ｍ","訪問","事業説明","製造業","有り","人材ビジネス事業者","要","こちらから電話","マネージャー・サブマネージャー",null,"時間","当社から連絡","電話","公開","全て","可","継続","継続中","○",{"$f":"TODAY()","v":"2022-05-09"},"斡旋合意","旭硝子(株)","常勤","製造業","営業・販売・セールス","社長相当","400万円以下","1000万円以下","5人以下","5億円以下"]
["セミナー等","元岡ＴＳＭ","来所","人材経営相談","建設業","無し","大企業連携","不要","必要なときに企業から電話","よろず支援拠点",null,"分","人材ビジネス事業者から連絡","メール","非公開","選択","不可","中止","成立","×",null,"紹介","アサヒグループHD(株)","非常勤","建設業","エンジニア（設計・生産技術）","役員相当","401～500万円","5000万円以下","6～20人","10億円以下"]
["連携専門員","小島ＳＭ","電話・メール","大企業連携相談","卸売業、小売業","検討中","人材ビジネス事業者及び大企業連携",null,"-","あいち産業振興機構",null,null,null,"FAX",null,null,null,"接触なし","不成立","●",null,"面談","味の素(株)",null,"卸売業、小売業","生産管理・工場運営・品質管理","部長相当","501～600万円","1億円以下","21～50人","20億円以下"]
["企業からの問い合わせ","糸川ＳＭ","その他","その他","情報通信業",null,"副業プロ人材の活用",null,null,"中産連コンサルタント",null,null,null,null,null,null,null,"成立",null,"◎",null,"中止","(株)キーエンス",null,"情報通信業","物流・購買","課長相当","601～700万円","3億円以下","51～100人","50億円以下"]
["紹介（中産連）","久田ＳＭ","ＷＥＢ",null,"運輸業、郵便業",null,null,null,null,null,null,null,null,null,null,null,null,"×",null,null,null,"その他","全日本空輸(株)",null,"運輸業、郵便業","新製品開発・商品企画","係長相当","701～800万円","10億円以下","101～200人","100億円以下"]
["紹介（愛知モデル/地銀）","小林ＳＭ","　",null,"宿泊業、飲食サービス業",null,null,null,null,null,null,null,null,null,null,null,null,"―　―",null,null,null,"継続","日本電気(株)",null,"宿泊業、飲食サービス業","技術開発・研究開発","専門職・エキスパート","801～900万円","10億円超","201～300人","300億円以下"]
["紹介（愛知モデル/信金）","石川ＳＭ",null,null,"生活関連サービス業、娯楽業",null,null,null,null,null,null,null,null,null,null,null,null,null,null,null,null,null,"パナソニック(株)",null,"生活関連サービス業、娯楽業","経理・財務","その他","901～1,000万円","個人","301人以上","300億円超"]
["紹介（愛知モデル/信組）","連携専門員",null,null,"金融業、保険業",null,null,null,null,null,null,null,null,null,null,null,null,null,null,null,null,null,"富士通(株)",null,"金融業、保険業","総務",null,"1,001～1,100万円","非公開/不明","非公開/不明","非公開/不明"]
["紹介（愛知モデル/その他）","金融機関(愛知ﾓﾃﾞﾙ)",null,null,"不動産業、物品賃貸業"]
["紹介（都市銀行）","金融機関(その他)",null,"目的（再訪問）","学術研究、専門・技術サービス業",null,null,null,null,null,null,null,null,null,null,null,null,null,null,null,null,null,"村田製作所",null,"不動産業、物品賃貸業","人事",null,"1,101～1,200万円"]
["紹介（地方銀行）",null,null,"人材経営相談","教育、学習支援業",null,null,null,null,null,null,null,null,null,null,null,null,null,null,null,null,null,null,null,null,null,null,"1,201～1,300万円"]
["紹介（信用金庫）",null,null,"大企業連携相談","医療、福祉",null,null,null,null,null,null,null,null,null,null,null,null,null,null,null,null,null,null,null,null,null,null,"1,301～1,400万円"]
["紹介（信用組合）",null,null,"その他","複合サービス事業",null,null,null,null,null,null,null,null,null,null,null,null,null,null,null,null,null,null,null,null,null,null,"1,401～1,500万円"]
["紹介（その他金融機関）",null,null,null,"サービス業（他に分類されないもの）",null,null,null,null,null,null,null,null,null,null,null,null,null,null,null,null,null,null,null,null,null,null,"1,500万円超"]
["紹介（商工会議所）",null,null,null,"電気・ガス・熱供給・水道業",null,null,null,null,null,null,null,null,null,null,null,null,null,null,null,null,null,null,null,null,null,null,"未定"]
["紹介（商工会）",null,null,null,"漁業"]
["紹介（自治体）",null,null,null,"鉱業、採石業、砂利採取業"]
["紹介（その他）",null,null,null,"公務（他に分類されるものを除く）"]
["その他",null,null,null,"分類不能の産業"]

{"sheet":"業種リスト","index":4,"n_rows":30,"n_cols":34,"rows_kept":30,"cut":false,"hidden":true,"merged":[]}
["業種（大分類）","業種（小分類）",null,null,null,null,null,"例示","総務省「日本標準産業分類」","業種（大分類）","業種（小分類）"]
["農業、林業、漁業","農業","林業","漁業・水産養殖業",null,null,null,"耕種農業、畜産農業、農業・園芸サービス業等\n育林業、素材生産業、製薪炭業、林業サービス業等\n海面漁業、内水面漁業、海面養殖業、内水面養殖業",null,"DMO・地域商社","DMO・地域商社","-","-","-","-","-","-","-","-","-","-","-","-","-","-","-","-","-","-","-","-","-","-","-"]
["鉱業、採石業、砂利採取業","鉱業、採石業、砂利採取業",null,null,null,null,null,"金属鉱業　（金、銀、鉛、亜鉛、鉄、タングステン等）、石炭・亜炭鉱業（炭鉱等）、原油・天然ガス鉱業、採石業、砂・砂利・玉石採取業等",null,"農業，林業","農業","林業","-","-","-","-","-","-","-","-","-","-","-","-","-","-","-","-","-","-","-","-","-","-"]
["建設業","建設業",null,null,null,null,null,"総合工事業　（一般土木建築工事業、舗装工事業、木造建築工事業等）、職別工事業（塗装工事業、床・内装工事業等）、設備工事業（電気工事業、電気通信・信号装置工事業等）",null,"漁業","漁業（水産養殖業を除く）","水産養殖業","-","-","-","-","-","-","-","-","-","-","-","-","-","-","-","-","-","-","-","-","-","-"]
["食料品、飲料・たばこ・飼料製造業","食料品製造業","飲料製造業","たばこ製造業","飼料・有機質肥料製造業",null,null,"畜産食料品、水産食料品、精穀・製粉、調味料等\n清涼飲料、酒類等\n配合飼料、有機質肥料等",null,"鉱業，採石業，砂利採取業","鉱業，採石業，砂利採取業","-","-","-","-","-","-","-","-","-","-","-","-","-","-","-","-","-","-","-","-","-","-","-"]
["繊維工業","製糸業、紡績業、化学繊維・ねん糸等製造業","織物業、ニット生地製造業","染色整理業、綱・網・レース・繊維粗製品製造業","衣服・その他の繊維製品製造業",null,null,"製糸、化学繊維、炭素繊維、綿紡績、化学繊維紡績、毛紡績、ねん糸等\n綿・スフ織物、絹・人絹織物、毛織物、細幅織物、丸編ニット生地等\n染色・整理、綱、網、レース、フェルト・不織布、繊維粗製品等\n織物製外衣、ニット製外衣、下着、和装製品、寝具、じゅうたん等",null,"建設業","総合工事業","職別工事業(設備工事業を除く)","設備工事業","-","-","-","-","-","-","-","-","-","-","-","-","-","-","-","-","-","-","-","-","-"]
["木材・木製品、パルプ・紙・紙加工品製造業","木材・木製品製造業","パルプ・紙製造業","紙加工品製造業",null,null,null,"一般製材、ベニヤ板、合板、パーティクルボード等\nパルプ、洋紙、板紙、和紙\n段ボール、壁紙、事務用・学用紙、紙製容器等",null,"製造業","食料品製造業","飲料・たばこ・飼料製造業","繊維工業","木材・木製品製造業（家具を除く）","家具・装備品製造業","パルプ・紙・紙加工品製造業","印刷・同関連業","化学工業","石油製品・石炭製品製造業","プラスチック製品製造業（別掲を除く）","ゴム製品製造業","なめし革・同製品・毛皮製造業","窯業・土石製品製造業","鉄鋼業","非鉄金属製造業","金属製品製造業","はん用機械器具製造業","生産用機械器具製造業","業務用機械器具製造業","電子部品・デバイス・電子回路製造業","電気機械器具製造業","情報通信機械器具製造業","輸送用機械器具製造業","その他の製造業"]
["化学工業","化学肥料製造業","有機化学工業製品製造業","油脂加工製品・石けん・合成洗剤・界面活性剤・塗料製造業","医薬品製造業","化粧品・歯磨、その他の化粧用調整品製造業","その他の化学工業","窒素質・りん酸質肥料、複合肥料等\nソーダ、無機顔料、圧縮ガス・液化ガス、リン酸、塩等\nエチレン等石油化学系基礎製品、脂肪族系中間物、エチルアルコール、フェノール樹脂等プラスチック、合成ゴム等\n脂肪酸、グリセリン、石けん、合成洗剤、界面活性剤、塗料、印刷インキ、ろうそく等\n医薬品、ワクチン、生薬・漢方製剤等\n化粧品・歯磨、その他の化粧用調整品 化粧品、シャンプー、歯磨等\n火薬類、農薬、ゼラチン、接着剤、写真感光材料等",null,"電気・ガス・熱供給・水道業","電気業","ガス業","熱供給業","水道業","-","-","-","-","-","-","-","-","-","-","-","-","-","-","-","-","-","-","-","-"]
["石油製品・石炭製品製造業","石油精製業","その他の石油製品・石炭製品製造業",null,null,null,null,"ガソリン、ナフサ、灯油、軽油、重油等\n潤滑油、グリース、コークス、練炭、豆炭、舗装材料等",null,"情報通信業","通信業","放送業","情報サービス業","インターネット附随サービス業","映像・音声・文字情報制作業","-","-","-","-","-","-","-","-","-","-","-","-","-","-","-","-","-","-","-"]
["窯業・土石製品製造業","ガラス・同製品製造業","セメント・同製品製造業","その他の窯業・土石製品製造業",null,null,null,"板ガラス、ガラス容器、理化学用・医療用ガラス器具等\nセメント・同製品製造業 セメント、生コンクリート、コンクリート製品等\n陶磁器・同関連製品、建設用粘土製品、耐火物、炭素・黒鉛製品、研磨材等",null,"運輸業，郵便業","鉄道業","道路旅客運送業","道路貨物運送業","水運業","航空運輸業","倉庫業","運輸に附帯するサービス業","郵便業（信書便事業を含む）","-","-","-","-","-","-","-","-","-","-","-","-","-","-","-","-"]
["鉄鋼業","銑鉄・粗鋼・鋼材製造業","鋳鍛造品・その他の鉄鋼製品製造業",null,null,null,null,"銑鉄、粗鋼、鋼材、鋼管等\n銑鉄鋳物、鋳鋼等鉄素形材、銑鋼シャースリット等",null,"卸売業，小売業","各種商品卸売業","繊維・衣服等卸売業","飲食料品卸売業","建築材料，鉱物・金属材料等卸売業","機械器具卸売業","その他の卸売業","各種商品小売業","織物・衣服・身の回り品小売業","飲食料品小売業","機械器具小売業","その他の小売業","無店舗小売業","-","-","-","-","-","-","-","-","-","-","-","-"]
["非鉄金属製造業","非鉄金属製錬・精製業","その他の非鉄金属製品製造業",null,null,null,null,"銅、鉛、亜鉛、貴金属、ニッケル、アルミニウム等\n伸銅品等非鉄金属・同合金圧延製品、電線、ケーブル、非鉄金属鋳物、非鉄金属鍛造品",null,"金融業，保険業","銀行業","協同組織金融業","貸金業，クレジットカード業等非預金信用機関","金融商品取引業，商品先物取引業","補助的金融業等","保険業（保険媒介代理業，保険サービス業を含む）","-","-","-","-","-","-","-","-","-","-","-","-","-","-","-","-","-","-"]
["金属製品製造業","建設用・建築用金属製品製造業","その他の金属製品製造業",null,null,null,null,"鉄骨、鉄塔、橋りょう等建設用金属製品、金属製サッシ・ドア、鉄骨系プレハブ住宅、建築用金属製品等\nブリキ缶、めっき板、洋食器、刃物、金物、暖房装置、金属素形材、金属線製品、ボルト、ナット、リベット等",null,"不動産業，物品賃貸業","不動産取引業","不動産賃貸業・管理業","物品賃貸業","-","-","-","-","-","-","-","-","-","-","-","-","-","-","-","-","-","-","-","-","-"]
["はん用機械器具製造業","一般産業用機械・装置製造業","その他のはん用機械器具製造業",null,null,null,null,"エレベータ、エスカレータ、コンベヤ、工業窯炉、冷凍機、湿潤調整装置等\nボイラ、原動機、ポンプ、圧縮機、消火器、軸受等",null,"学術研究，専門・技術サービス業","学術・開発研究機関","専門サービス業（他に分類されないもの）","広告業","技術サービス業（他に分類されないもの）","-","-","-","-","-","-","-","-","-","-","-","-","-","-","-","-","-","-","-","-"]
["生産用機械器具製造業","農業用機械、建設機械・鉱山機械、繊維機械製造業","生活関連産業用機械・基礎素材産業用機械製造業","金属加工機械製造業","半導体・フラットパネルディスプレイ製造装置製造業","その他の生産用機械器具製造業",null,"農業用機械、建設機械、鉱山機械、化学繊維機械、紡績機械、製織機械、編組機械、染色整理仕上機械、縫製機械等\n食品機械、木材加工機械、パルプ装置・製紙機械、印刷・製本・紙工用機械製造業 　機械、包装・荷造機械、鋳造装置、化学機械、プラスチック加工機械等\n旋盤、ボール盤等金属工作機械、圧延機械、ベンディングマシン等\n金属加工機械等\nウェーハプロセス装置、半導体製造装置、フラットパネルディスプレイ製造装置\n金型、真空装置、ロボット等",null,"宿泊業，飲食サービス業","宿泊業","飲食店","持ち帰り・配達飲食サービス業","-","-","-","-","-","-","-","-","-","-","-","-","-","-","-","-","-","-","-","-","-"]
["業務用機械器具製造業","事務用・サービス用・娯楽用機械器具製造業","光学機械器具・レンズ製造業","その他の業務用機械器具製造業",null,null,null,"複写機等事務用機械器具、営業用洗濯機、自動車洗浄機、遊園施設機械、自動販売機、両替機、自動ドア等\nカメラ、顕微鏡、望遠鏡、映画用機械、光学機械用レンズ、プリズム等\n計量器、測定器、分析機器、試験機、測定機械器具、理化学機械器具、医療用機械器具、武器等",null,"生活関連サービス業，娯楽業","洗濯・理容・美容・浴場業","その他の生活関連サービス業","娯楽業","-","-","-","-","-","-","-","-","-","-","-","-","-","-","-","-","-","-","-","-","-"]
["電気機械器具製造業","産業用電気機械器具製造業","民生用電気機械器具製造業","電子応用装置製造業","その他の電気機械器具製造業",null,null,"発電機、電動機、その他の回転電気機械、変圧器類、電力開閉装置、配電盤、分電盤、電気溶接機、電気炉等\n電子レンジ、冷蔵庫、電気がま、扇風機、電気温水器、エアコン、洗濯機、掃除機、アイロン、電気ストーブ等\nX線装置、医療用電子応用装置、電子顕微鏡等その他の電子応用装置\n電球、蛍光灯等電球・電気照明器具、蓄電池、乾電池、電気計測器、工業計器、化学分析機器、永久磁石等",null,"教育，学習支援業","学校教育","その他の教育，学習支援業","-","-","-","-","-","-","-","-","-","-","-","-","-","-","-","-","-","-","-","-","-","-"]
["情報通信機械器具、電子部品・デバイス・電子回路製造業","通信機械器具・同関連機械器具、映像・音響機械器具製造業","電子計算機・同附属装置製造業","電子部品・デバイス・電子回路製造業",null,null,null,"電話機、ファクシミリ等有線通信機械器具、ラジオ・テレビ放送装置、携帯電話等無線通信機械器具、ラジオ・テレビ受信機、ビデオ機器、デジタルカメラ、ステレオ、カラオケ等電気音響機器等\n電子計算機、パーソナルコンピュータ、磁気ディスク装置、光ディスク装置等外部記憶装置等\nブラウン管等電子管、ダイオード、トランジスタ、集積回路、液晶パネル・フラットパネル、抵抗器、コンデンサ、変成器、磁気ヘッド、半導体メモリメディア、光ディスク、電子回路基盤、ユニット部品等",null,"医療，福祉","医療業","保健衛生","社会保険・社会福祉・介護事業","-","-","-","-","-","-","-","-","-","-","-","-","-","-","-","-","-","-","-","-","-"]
["輸送機械器具製造業","自動車、自動車車体・附随車製造業","自動車部分品・附属品製造業","その他の輸送用機械器具製造業",null,null,null,"乗用車、バス、トラック、二輪自動車、トレーラ\n自動車エンジン、ブレーキ、クラッチ車軸、ラジエータ、デファレンシャルギア等\n鉄道車輌・同部品、船舶、船用機関、航空機・同附属品、産業用車輌・同部分品附属品、自転車・同部分品等",null,"複合サービス事業","郵便局","協同組合（他に分類されないもの）","-","-","-","-","-","-","-","-","-","-","-","-","-","-","-","-","-","-","-","-","-","-"]
["その他の製造業","家具・装備品製造業","印刷・同関連業","プラスチック製品製造業","ゴム製品製造業","なめし革・同製品・毛皮製造業","その他の製造業","家具、宗教用具、建具等\n印刷業、製版業、製本業、印刷物加工業、印刷関連サービス業\nプラスチック板・棒・管・継手・異形押出製品・フィルム・シート・床材、合成皮革、工業用プラスチック製品、発泡・強化プラスチック製品、プラスチック成型材料等\nタイヤ、チューブ、ゴム製・プラスチック製履物、ゴムベルト、ゴムホース、工業用ゴム製品等\nなめし革、工業用革製品、革製履物、革製手袋、かばん、袋物、毛皮等\n貴金属・宝石製品、装身具、装飾品、ボタン、時計、楽器、がん具、眼鏡、運動用具、ペン・鉛筆等事務用品、漆器、畳等生活雑貨製品等",null,"サービス業（他に分類されないもの）","廃棄物処理業","自動車整備業","機械等修理業","職業紹介・労働者派遣業","その他の事業サービス業","政治・経済・文化団体","宗教","その他のサービス業","外国公務","-","-","-","-","-","-","-","-","-","-","-","-","-","-","-"]
["電気・ガス・熱供給・水道業","電気業、ガス業、熱供給業、水道業",null,null,null,null,null,"発電所、変電所、ガス製造工場、ガス供給所、熱供給業、上水道業、工業用水道業、下水道業",null,"公務（他に分類されるものを除く）","国家公務","地方公務","-","-","-","-","-","-","-","-","-","-","-","-","-","-","-","-","-","-","-","-","-","-"]
["情報通信業","通信業","放送業","情報サービス業","インターネット附随サービス業","映像・音声・文字情報制作業",null,"固定電気通信業、移動電気通信業等\n公共放送業、民間放送業、有線放送業\nソフトウェア業、情報処理・提供サービス業\nポータルサイト・サーバ運営業、アプリケーション・サービス・プロバイダ、ウェブ・コンテンツ提供業、電子認証業、情報ネットワーク・セキュリティ・サービス業等\n映像情報制作・配給業、音声情報制作業、新聞業、出版業、広告制作業等",null,"分類不能の産業","分類不能の産業","-","-","-","-","-","-","-","-","-","-","-","-","-","-","-","-","-","-","-","-","-","-","-"]
["運輸業","鉄道業、道路旅客運送業、道路貨物運送業、水運業、航空運輸業、郵便業","倉庫業・運輸に附帯するサービス業",null,null,null,null,"鉄道業、道路旅客運送業、道路貨物運送業、水運業、航空運輸業、運送業、水運業、航空運輸業、郵便業 　郵便業\n倉庫業、港湾運送業、貨物運送取扱業、運送代理店、こん包業、運輸施設提供業等"]
["卸売業、小売業","卸売業","小売業",null,null,null,null,"各種商品卸売業、機械器具卸売業等\n各種商品小売業、飲食料品小売業、機械器具小売業等"]
["金融業、保険業","金融業、保険業",null,null,null,null,null,"銀行業、協同組織金融業、貸金業、クレジットカード業、金融商品取引業、商品先物取引業、保険業等"]
["不動産業","不動産業",null,null,null,null,null,"不動産取引業、不動産賃貸・管理業"]
["物品賃貸業","物品賃貸業",null,null,null,null,null,"各種物品賃貸業、産業用機械器具賃貸業、自動車賃貸業等"]
["宿泊業、飲食サービス業","宿泊業","飲食店","持ち帰り・配達飲食サービス業",null,null,null,"旅館、ホテル等\n飲食店 食堂、レストラン、専門料理店、酒場・ビヤホール、喫茶店等\n持ち帰り飲食サービス業、配達飲食サービス業"]
["教育、学習支援、医療、福祉、複合サービス業","教育、学習支援","医療、福祉","複合サービス業",null,null,null,"幼稚園、学校、学習塾、技能教授所等\n病院、保健所、保育所、介護老人保健施設、障害者支援施設等\n郵便局、協同組合"]
["サービス業","経営コンサルタント業、純粋持株会社","広告業","学術研究、専門・技術サービス業","生活関連サービス業、娯楽業","その他のサービス業",null,"経営コンサルタント業、純粋持株会社\n総合広告業、広告代理業、新聞広告代理業、インターネット広告業等\n学術・開発研究機関、法律事務所、特許事務所、公認会計士事務所、税理士事務所、デザイン業、著述家業、興信所、翻訳業、獣医業、建築設計業、機械設計業、写真業等\n洗濯・理容・美容・浴場業、旅行業、物品預り業、冠婚葬祭業、映画館、劇場、スポーツ施設提供業、公園、遊園地、遊戯場等\n廃棄物処理業、自動車整備業、機械等修理業、職業紹介・労働者派遣業、速記業、複写業、警備業、政治・経済・文化団体、宗教等"]

{"sheet":"中間ファイル","index":5,"n_rows":23,"n_cols":46,"rows_kept":23,"cut":false,"hidden":true,"merged":[]}
["項目","接触経路：","紹介元名","訪問予定者1","訪問予定者2","訪問予定者3","訪問予定者4","訪問予定者5","訪問予定日","訪問時間","企業名","代表者役職","代表者氏名","郵便番号","住所","TEL","FAX","ＨＰ","連絡担当者役職","連絡担当者","電話\n（連絡担当者）","Email\n（連絡担当者）","資本金","売上高","創業年（年）","業種（大分類）","業種（中分類）","正社員",null,null,"その他",null,"合計","経営理念","主な得意先","製品・サービス","自社の特徴（他社との差別化ポイント）","解決したい経営課題1","解決したい経営課題2","解決したい経営課題3","金融機関名","支店名","部署名・役職","担当者名","担当者E-Mail","担当者電話番号"]
["内容",{"$f":"IF(事前調査票!C35=\"\",\"\",事前調査票!C35)","v":""},{"$f":"IF(事前調査票!E35=\"\",\"\",事前調査票!E35)","v":""},{"$f":"IF(事前調査票!E36=\"\",\"\",事前調査票!E36)","v":""},{"$f":"IF(事前調査票!F36=\"\",\"\",事前調査票!F36)","v":""},null,null,null,{"$f":"IF(事前調査票!B36=\"\",\"\",事前調査票!B36)","v":""},{"$f":"IF(事前調査票!C36=\"\",\"\",事前調査票!C36)","v":"："},{"$f":"IF(事前調査票!B4=\"\",\"\",事前調査票!B4)","v":""},{"$f":"IF(事前調査票!C8=\"\",\"\",事前調査票!C8)","v":""},{"$f":"IF(事前調査票!F8=\"\",\"\",事前調査票!F8)","v":""},{"$f":"IF(事前調査票!B5=\"\",\"\",事前調査票!B5)","v":"〒"},{"$f":"IF(事前調査票!C5=\"\",\"\",事前調査票!C5)","v":""},{"$f":"IF(事前調査票!B6=\"\",\"\",事前調査票!B6)","v":""},{"$f":"IF(事前調査票!E6=\"\",\"\",事前調査票!E6)","v":""},{"$f":"IF(事前調査票!B7=\"\",\"\",事前調査票!B7)","v":""},{"$f":"IF(事前調査票!C9=\"\",\"\",事前調査票!C9)","v":""},{"$f":"IF(事前調査票!F9=\"\",\"\",事前調査票!F9)","v":""},{"$f":"IF(事前調査票!B6=\"\",\"\",事前調査票!B6)","v":""},{"$f":"IF(事前調査票!B11=\"\",\"\",事前調査票!B11)","v":""},{"$f":"IF(事前調査票!B12=\"\",\"\",事前調査票!B12)","v":""},{"$f":"IF(事前調査票!D12=\"\",\"\",事前調査票!D12)","v":""},{"$f":"IF(事前調査票!F12=\"\",\"\",事前調査票!F12)","v":""},{"$f":"IF(事前調査票!C13=\"\",\"\",事前調査票!C13)","v":""},{"$f":"IF(事前調査票!C14=\"\",\"\",事前調査票!C14)","v":""},{"$f":"IF(事前調査票!C15=\"\",\"\",事前調査票!C15)","v":""},null,null,{"$f":"IF(事前調査票!E15=\"\",\"\",事前調査票!E15)","v":""},null,{"$f":"IF(事前調査票!F15=\"\",\"\",事前調査票!F15)","v":0},{"$f":"IF(事前調査票!B16=\"\",\"\",事前調査票!B16)","v":""},{"$f":"IF(事前調査票!C17=\"\",\"\",事前調査票!C17)","v":""},{"$f":"IF(事前調査票!C18=\"\",\"\",事前調査票!C18)","v":""},{"$f":"IF(事前調査票!C19=\"\",\"\",事前調査票!C19)","v":""},{"$f":"IF(事前調査票!C21=\"\",\"\",事前調査票!C21)","v":""},{"$f":"IF(事前調査票!C22=\"\",\"\",事前調査票!C22)","v":""},{"$f":"IF(事前調査票!C23=\"\",\"\",事前調査票!C23)","v":""},{"$f":"IF(事前調査票!B31=\"\",\"\",事前調査票!B31)","v":""},{"$f":"IF(事前調査票!E31=\"\",\"\",事前調査票!E31)","v":""},{"$f":"IF(事前調査票!B32=\"\",\"\",事前調査票!B32)","v":""},{"$f":"IF(事前調査票!E32=\"\",\"\",事前調査票!E32)","v":""},{"$f":"IF(事前調査票!B33=\"\",\"\",事前調査票!B33)","v":""},{"$f":"IF(事前調査票!E33=\"\",\"\",事前調査票!E33)","v":""}]
[null,null,null,null,null,null,null,null,null,null,null,null,null,null,null,null,null,null,null,null,null,null,null,null,null,null,null,null,null,null,null,null,null,null,null,null,null,null,null,null,"2022/4/1追加（金融機関担当者情報）"]
["ファイルの場所"]
[{"$f":"CELL(\"filename\")","v":"\\\\file03sv\\06.プロ人材戦略拠点\\（00）各種フォーマット　最新版\\ヒアリング調査票　様式\\20220509改　様式\\[事前調査票_20220509版（マクロなし）.xlsm]事前調査票"}]
["ディレクトリ"]
[{"$f":"LEFT(A5,FIND(\"[\",A5)-1)","v":"\\\\file03sv\\06.プロ人材戦略拠点\\（00）各種フォーマット　最新版\\ヒアリング調査票　様式\\20220509改　様式\\"}]
["企業名"]
[{"$f":"TRIM(SUBSTITUTE(SUBSTITUTE(SUBSTITUTE(SUBSTITUTE(SUBSTITUTE(SUBSTITUTE(SUBSTITUTE(SUBSTITUTE(SUBSTITUTE(K2,\"合資会社\",\"\"),\"（有）\",\"\"),\"(有)\",\"\"),\"㈲\",\"\"),\"有限会社\",\"\"),\"(株)\",\"\"),\"（株）\",\"\"),\"㈱\",\"\"),\"株式会社\",\"\"))","v":""},null,null,null,"事前調査票をヒアリング調査票へコピーする際に使用"]
[]
[]
[]
[null,null,null,null,null,null,null,null,null,null,null,null,null,null,null,null,null,null,null,null,null,null,null,null,null,null,null,null,null,null,null,null,null,null,"2022/4/1追加（愛知モデルの時は企業情報シートの番号をKにする）"]
["ヒアリング調査票から",null,null,null,null,null,null,null,null,null,null,null,null,null,null,null,null,null,null,null,null,null,null,null,null,null,null,null,null,null,null,null,null,null,"↓"]
["項目","接触経路：","紹介元名","訪問者1","訪問者2","訪問者3","訪問者4","訪問者5","訪問日","訪問時間","面談方法","面談目的1","面談目的2","面談目的3","面談目的4","企業名","代表者役職","代表者氏名","郵便番号","住所","TEL","FAX","ＨＰ","連絡担当者役職","連絡担当者","電話\n（連絡担当者）",null,"Email\n（連絡担当者）","資本金","売上高","創業年（年）","業種（大分類）","業種（小分類）","従業員数","企業情報シート番号"]
["内容",{"$f":"IF(ヒアリング調査票!P2=\"\",\"\",ヒアリング調査票!P2)","v":""},{"$f":"IF(ヒアリング調査票!V2=\"\",\"\",ヒアリング調査票!V2)","v":""},{"$f":"IF(ヒアリング調査票!D4=\"\",\"\",ヒアリング調査票!D4)","v":""},{"$f":"IF(ヒアリング調査票!H4=\"\",\"\",ヒアリング調査票!H4)","v":""},{"$f":"IF(ヒアリング調査票!L4=\"\",\"\",ヒアリング調査票!L4)","v":""},{"$f":"IF(ヒアリング調査票!P4=\"\",\"\",ヒアリング調査票!P4)","v":""},{"$f":"IF(ヒアリング調査票!T4=\"\",\"\",ヒアリング調査票!T4)","v":""},{"$f":"IF(ヒアリング調査票!D5=\"\",\"\",ヒアリング調査票!D5)","v":""},{"$f":"IF(ヒアリング調査票!P5=\"\",\"\",ヒアリング調査票!P5)","v":"："},{"$f":"IF(ヒアリング調査票!D6=\"\",\"\",ヒアリング調査票!D6)","v":""},{"$f":"IF(ヒアリング調査票!M6=\"\",\"\",ヒアリング調査票!M6)","v":""},{"$f":"IF(ヒアリング調査票!P6=\"\",\"\",ヒアリング調査票!P6)","v":""},{"$f":"IF(ヒアリング調査票!S6=\"\",\"\",ヒアリング調査票!S6)","v":""},{"$f":"IF(ヒアリング調査票!V6=\"\",\"\",ヒアリング調査票!V6)","v":""},{"$f":"IF(ヒアリング調査票!D7=\"\",\"\",ヒアリング調査票!D7)","v":""},{"$f":"IF(ヒアリング調査票!D8=\"\",\"\",ヒアリング調査票!D8)","v":""},{"$f":"IF(ヒアリング調査票!H8=\"\",\"\",ヒアリング調査票!H8)","v":""},{"$f":"IF(ヒアリング調査票!N7=\"\",\"\",ヒアリング調査票!N7)","v":"〒"},{"$f":"IF(ヒアリング調査票!N8=\"\",\"\",ヒアリング調査票!N8)","v":""},{"$f":"IF(ヒアリング調査票!O9=\"\",\"\",ヒアリング調査票!O9)","v":""},{"$f":"IF(ヒアリング調査票!O10=\"\",\"\",ヒアリング調査票!O10)","v":""},{"$f":"IF(ヒアリング調査票!O11=\"\",\"\",ヒアリング調査票!O11)","v":""},{"$f":"IF(ヒアリング調査票!D13=\"\",\"\",ヒアリング調査票!D13)","v":""},{"$f":"IF(ヒアリング調査票!H13=\"\",\"\",ヒアリング調査票!H13)","v":""},{"$f":"IF(ヒアリング調査票!R12=\"\",\"\",ヒアリング調査票!R12)","v":""},null,{"$f":"IF(ヒアリング調査票!R13=\"\",\"\",ヒアリング調査票!R13)","v":""},{"$f":"IF(ヒアリング調査票!D14=\"\",\"\",ヒアリング調査票!D14)","v":""},{"$f":"IF(ヒアリング調査票!K14=\"\",\"\",ヒアリング調査票!K14)","v":""},{"$f":"IF(ヒアリング調査票!U14=\"\",\"\",ヒアリング調査票!U14)","v":""},{"$f":"IF(ヒアリング調査票!G15=\"\",\"\",ヒアリング調査票!G15)","v":""},{"$f":"IF(ヒアリング調査票!G16=\"\",\"\",ヒアリング調査票!G16)","v":""},{"$f":"IF(ヒアリング調査票!T17=\"\",\"\",ヒアリング調査票!T17)","v":0},{"$f":"IF(COUNTIF(ヒアリング調査票!P2,\"*愛知モデル*\"),\"K\",\"J\")","v":"J"}]
[]
["ファイルの場所"]
[{"$f":"CELL(\"filename\")","v":"\\\\file03sv\\06.プロ人材戦略拠点\\（00）各種フォーマット　最新版\\ヒアリング調査票　様式\\20220509改　様式\\[事前調査票_20220509版（マクロなし）.xlsm]事前調査票"}]
["ディレクトリ"]
[{"$f":"LEFT(A19,FIND(\"[\",A19)-1)","v":"\\\\file03sv\\06.プロ人材戦略拠点\\（00）各種フォーマット　最新版\\ヒアリング調査票　様式\\20220509改　様式\\"}]
["企業名"]
[{"$f":"TRIM(SUBSTITUTE(SUBSTITUTE(SUBSTITUTE(SUBSTITUTE(SUBSTITUTE(SUBSTITUTE(SUBSTITUTE(SUBSTITUTE(SUBSTITUTE(P16,\"合資会社\",\"\"),\"（有）\",\"\"),\"(有)\",\"\"),\"㈲\",\"\"),\"有限会社\",\"\"),\"(株)\",\"\"),\"（株）\",\"\"),\"㈱\",\"\"),\"株式会社\",\"\"))","v":""},null,null,null,"ヒアリング調査票を企業情報シートへコピーする際に使用"]

{"sheet":"人材会社_企業情報シート","index":6,"n_rows":94,"n_cols":59,"rows_kept":94,"cut":false,"hidden":true,"merged":[[86,44,87,56],[91,2,92,56],[79,44,80,56],[82,2,83,56],[78,1,79,8],[79,12,80,16],[79,17,80,23],[79,26,80,29],[79,30,80,36],[88,2,89,19],[88,20,89,56],[84,2,85,56],[86,2,87,7],[86,8,87,19],[86,20,87,25],[86,26,87,37],[86,38,87,43],[65,40,67,52],[79,39,80,43],[68,1,69,8],[68,9,69,52],[70,1,73,8],[70,9,73,58],[75,1,76,13],[75,14,76,27],[75,28,76,39],[75,40,76,58],[65,1,67,8],[65,9,67,16],[65,17,67,24],[65,25,67,32],[65,33,67,39],[49,48,50,58],[51,1,58,8],[51,9,58,58],[61,1,64,8],[61,9,64,58],[49,1,50,8],[49,9,50,21],[49,22,50,28],[49,29,50,40],[49,41,50,47],[30,9,34,58],[35,1,38,8],[35,9,38,58],[43,1,48,8],[43,9,48,58],[39,1,40,8],[39,9,40,16],[39,17,40,23],[39,24,40,58],[30,1,34,8],[18,1,22,8],[18,9,22,58],[24,1,29,8],[24,9,25,9],[24,10,25,16],[24,17,29,23],[24,24,29,58],[26,9,27,9],[26,10,27,16],[28,9,29,9],[28,10,29,16],[12,9,12,11],[12,12,12,23],[14,1,17,8],[14,9,17,16],[14,17,17,23],[14,24,17,58],[9,45,10,58],[10,9,10,11],[10,12,10,23],[11,1,12,8],[11,9,11,11],[11,12,11,23],[11,24,12,30],[11,31,12,37],[11,38,12,44],[11,45,12,58],[9,1,10,8],[9,9,9,11],[9,12,9,23],[9,24,10,30],[9,31,10,37],[9,38,10,44],[1,1,2,58],[4,1,5,8],[4,9,5,28],[5,37,5,43],[5,52,5,58],[7,1,8,8],[7,9,8,37],[7,38,8,44],[7,45,8,58]]}
[]
[null,"企業情報シート"]
[]
[]
[null,"会社名"]
[null,null,null,null,null,null,null,null,null,null,null,null,null,null,null,null,null,null,null,null,null,null,null,null,null,null,null,null,null,null,null,null,null,null,null,null,"作成日：",null,null,null,null,null,null,null,null,null,null,null,null,null,null,"最終更新日："]
[]
[null,"住　所",null,null,null,null,null,null,null,null,null,null,null,null,null,null,null,null,null,null,null,null,null,null,null,null,null,null,null,null,null,null,null,null,null,null,null,null,"H　P"]
[]
[null,"代表者",null,null,null,null,null,null,null,"役職",null,null,null,null,null,null,null,null,null,null,null,null,null,null,"従業員数",null,null,null,null,null,null,0,null,null,null,null,null,null,"資本金"]
[null,null,null,null,null,null,null,null,null,"氏名"]
[null,"担当者",null,null,null,null,null,null,null,"役職",null,null,null,null,null,null,null,null,null,null,null,null,null,null,"担当者連絡先\n(電話番号）",null,null,null,null,null,null,null,null,null,null,null,null,null,"担当者連絡先\n(メール）"]
[null,null,null,null,null,null,null,null,null,"氏名"]
[]
[null,"業　種",null,null,null,null,null,null,null,null,null,null,null,null,null,null,null,"事業内容\n（具体的に）"]
[]
[]
[]
[null,"その他、企業や事業\n内容等に関する情報"]
[]
[]
[]
[]
[]
[null,"経営課題",null,null,null,null,null,null,null,1,null,null,null,null,null,null,null,"（具体的に）"]
[]
[null,null,null,null,null,null,null,null,null,2]
[]
[null,null,null,null,null,null,null,null,null,3]
[]
[null,"経営課題解決のために必要なミッション"]
[]
[]
[]
[]
[null,"経営課題解決に\n向けた障壁"]
[]
[]
[]
[null,"プロ人材\nニーズ",null,null,null,null,null,null,null,"プルダウンより選択",null,null,null,null,null,null,null,"契約形態",null,null,null,null,null,null,"プルダウンより選択"]
[]
[]
[null,"雇用契約(フルタイム)の場合"]
[null,"将来的に期待する\n役割"]
[]
[]
[]
[]
[]
[null,"想定される役職",null,null,null,null,null,null,null,"プルダウンより選択",null,null,null,null,null,null,null,null,null,null,null,null,"職種",null,null,null,null,null,null,"プルダウンより選択",null,null,null,null,null,null,null,null,null,null,null,"想定年収",null,null,null,null,null,null,"プルダウンより選択"]
[]
[null,"必要とする\n人材像"]
[]
[]
[]
[]
[]
[]
[]
[]
[null,"雇用契約(パートタイム)・業務委託契約(準委任型)・業務委託契約(請負型)の場合"]
[null,"具体的な\n業務内容"]
[]
[]
[]
[null,"業務開始希望時期",null,null,null,null,null,null,null,null,null,null,null,null,null,null,null,"業務遂行期間",null,null,null,null,null,null,null,null,null,null,null,null,null,null,null,"想定予算"]
[]
[]
[null,"業務遂行手段",null,null,null,null,null,null,null,"プルダウンより選択"]
[]
[null,"必要とする\n人材像"]
[]
[]
[]
[]
[null,"人材ビジネス事業者との初回連絡",null,null,null,null,null,null,null,null,null,null,null,null,"プルダウンより選択",null,null,null,null,null,null,null,null,null,null,null,null,null,"電話の場合対応可能な時間帯",null,null,null,null,null,null,null,null,null,null,null,"プルダウンより選択"]
[]
[]
[null,"　＜拠点処理欄＞"]
[null,null,null,null,null,null,null,null,null,null,null,null,"拠点担当者",null,null,null,null,null,null,null,null,null,null,null,null,null,"番号",null,null,null,"J",null,null,null,null,null,null,null,null,"備考"]
[]
[null,"　【企業情報シートの取扱いについて】"]
[null,null,"　　　本シートの記載内容を本事業の登録人材ビジネス事業者に対して情報提供することについて、相談企業から同意あり"]
[]
[null,null,"　　　（金融機関から紹介の場合）本シートの記載内容を紹介元金融機関に対して情報提供することについて、相談企業から同意あり"]
[]
[null,null,"　　確認相手",null,null,null,null,null,null,null,null,null,null,null,null,null,null,null,null,null,"　　確認日時",null,null,null,null,null,null,null,null,null,null,null,null,null,null,null,null,null,"　　確認手法"]
[]
[null,null,"情報提供先（人材ビジネス事業者）"]
[]
[]
[null,null,"　　　本シートの記載内容について、第三者へ提供することについて同意が得られず　　⇒　情報提供はしない"]
[]
[null,null,null,null,null,null,null,null,null,null,null,null,null,null,null,null,null,null,null,null,null,null,null,null,null,null,null,null,null,null,null,null,null,null,null,null,null,null,null,null,null,null,null,null,null,null,null,null,null,null,null,null,null,null,null,null,null,null,"202205_改訂版"]

{"sheet":"大企業連携_企業情報シート","index":7,"n_rows":98,"n_cols":60,"rows_kept":98,"cut":false,"hidden":true,"merged":[[7,50,8,58],[9,1,10,8],[9,9,10,28],[9,29,10,35],[9,36,10,43],[9,44,10,49],[9,50,10,58],[7,1,8,8],[7,9,8,28],[7,29,8,35],[7,36,8,43],[7,44,8,49],[1,1,2,58],[4,1,5,8],[4,9,5,28],[5,37,5,43],[5,52,5,58],[11,36,12,43],[11,44,12,49],[14,1,17,8],[14,9,17,16],[14,17,17,23],[14,24,17,58],[11,50,12,58],[11,1,12,8],[11,9,12,28],[11,29,12,35],[18,1,22,8],[18,9,22,58],[24,1,32,8],[24,9,26,9],[24,10,26,16],[24,17,32,23],[24,24,32,58],[27,9,29,9],[27,10,29,16],[30,9,32,9],[30,10,32,16],[33,1,37,8],[33,9,37,58],[38,1,39,8],[38,9,39,58],[40,1,43,8],[40,9,43,16],[40,17,43,23],[40,24,43,58],[46,1,49,8],[46,9,49,58],[50,1,52,8],[50,9,52,32],[50,33,52,39],[50,40,52,52],[53,1,56,8],[53,9,56,58],[59,1,62,8],[59,9,62,58],[63,1,65,8],[63,9,65,16],[63,17,65,24],[63,25,65,32],[63,33,65,39],[63,40,65,52],[66,1,68,8],[66,9,68,52],[69,1,72,8],[69,9,72,58],[75,1,76,11],[76,37,77,45],[76,46,77,58],[94,2,95,58],[79,2,80,58],[81,2,82,58],[83,2,84,58],[85,2,86,58],[87,2,88,58],[89,2,90,58],[91,2,92,7],[91,8,92,19],[91,20,92,25],[91,26,92,37],[91,38,92,43],[91,44,92,58]]}
[]
[null,"企業情報シート（大企業連携用）"]
[]
[]
[null,"会社名"]
[null,null,null,null,null,null,null,null,null,null,null,null,null,null,null,null,null,null,null,null,null,null,null,null,null,null,null,null,null,null,null,null,null,null,null,null,"作成日：",null,null,null,null,null,null,null,null,null,null,null,null,null,null,"最終更新日："]
[]
[null,"住所",null,null,null,null,null,null,null,null,null,null,null,null,null,null,null,null,null,null,null,null,null,null,null,null,null,null,null,"電話番号",null,null,null,null,null,null,null,null,null,null,null,null,null,null,"ＨＰ"]
[]
[null,"代表者名",null,null,null,null,null,null,null,null,null,null,null,null,null,null,null,null,null,null,null,null,null,null,null,null,null,null,null,"従業員数",null,null,null,null,null,null,0,null,null,null,null,null,null,null,"資本金"]
[]
[null,"担当者",null,null,null,null,null,null,null,null,null,null,null,null,null,null,null,null,null,null,null,null,null,null,null,null,null,null,null,"役職",null,null,null,null,null,null,null,null,null,null,null,null,null,null,"連絡先"]
[]
[]
[null,"業種",null,null,null,null,null,null,null,null,null,null,null,null,null,null,null,"事業内容\n（具体的に）"]
[]
[]
[]
[null,"その他、企業や事業内容等\nに関する情報"]
[]
[]
[]
[]
[]
[null,"経営課題",null,null,null,null,null,null,null,1,null,null,null,null,null,null,null,"（具体的に）"]
[]
[]
[null,null,null,null,null,null,null,null,null,2]
[]
[]
[null,null,null,null,null,null,null,null,null,3]
[]
[]
[null,"経営課題解決のために必要なミッション"]
[]
[]
[]
[]
[null,"経営課題解決に\n向けた障壁"]
[]
[null,"プロ人材\nニーズ",null,null,null,null,null,null,null,"プルダウンより選択",null,null,null,null,null,null,null,"契約形態",null,null,null,null,null,null,"プルダウンより選択"]
[]
[]
[]
[]
[null,"雇用契約(フルタイム)の場合 ※在籍型出向を想定"]
[null,"将来的に期待する\n役割"]
[]
[]
[]
[null,"想定される\n役職",null,null,null,null,null,null,null,null,null,null,null,null,null,null,null,null,null,null,null,null,null,null,null,null,null,null,null,null,null,null,null,"想定年収"]
[]
[]
[null,"必要とする\n人材像"]
[]
[]
[]
[]
[null,"雇用契約(パートタイム)・業務委託契約(準委任型)・業務委託契約(請負型)の場合"]
[null,"具体的な\n業務内容"]
[]
[]
[]
[null,"業務開始希望時期",null,null,null,null,null,null,null,null,null,null,null,null,null,null,null,"業務遂行期間",null,null,null,null,null,null,null,null,null,null,null,null,null,null,null,"想定予算"]
[]
[]
[null,"業務遂行手段",null,null,null,null,null,null,null,"プルダウンより選択"]
[]
[]
[null,"必要とする\n人材像"]
[]
[]
[]
[]
[]
[null,"　＜拠点処理欄＞"]
[null,null,null,null,null,null,null,null,null,null,null,null,null,null,null,null,null,null,null,null,null,null,null,null,null,null,null,null,null,null,null,null,null,null,null,null,null,"拠点担当者"]
[]
[null,"　【企業情報シートの取扱いについて】"]
[null,null,"①　　　本シートの記載内容を本事業の拠点のパートナーである企業に対して、人材交流を目的に情報提供することについて、相談企業から同意あり"]
[]
[null,null,"　　　　情報提供を希望しない企業名（　　　　　　　　　　　　　　　　　　　　　　　　　　　　　　　　　　　　　　　　　　　　　　　　　　　　　　　　）"]
[]
[null,null,"②　　　本シートの記載内容を本事業の全国事務局のパートナーである企業に対して、人材交流を目的に情報提供することについて、相談企業から同意あり"]
[]
[null,null,"　　　　情報提供を希望しない企業名（　　　　　　　　　　　　　　　　　　　　　　　　　　　　　　　　　　　　　　　　　　　　　　　　　　　　　　　　）"]
[]
[null,null,"③　　 本シートの記載内容を（公財）産業雇用安定センターに対して情報提供することについて、相談企業から同意あり"]
[]
[null,null,"④　　 （金融機関から紹介の場合）本シートの記載内容を紹介元金融機関に対して情報提供することについて、相談企業から同意あり"]
[]
[null,null,"確認相手",null,null,null,null,null,null,null,null,null,null,null,null,null,null,null,null,null,"確認日時",null,null,null,null,null,null,null,null,null,null,null,null,null,null,null,null,null,"確認手法"]
[]
[]
[null,null,"　　     本シートの記載内容について、第三者へ提供することについて同意が得られず　　⇒　情報提供はしない"]
[]
[]
[null,null,null,null,null,null,null,null,null,null,null,null,null,null,null,null,null,null,null,null,null,null,null,null,null,null,null,null,null,null,null,null,null,null,null,null,null,null,null,null,null,null,null,null,null,null,null,null,null,null,null,null,null,null,null,null,null,null,null,"202205_改訂版"]

{"sheet":"人材会社_記入例(雇用契約(フルタイム)以外)","index":8,"n_rows":94,"n_cols":59,"rows_kept":94,"cut":false,"hidden":true,"merged":[[84,2,85,56],[88,2,89,19],[88,20,89,56],[91,2,92,56],[79,44,80,56],[82,2,83,56],[86,2,87,7],[86,8,87,19],[86,20,87,25],[86,26,87,37],[86,38,87,43],[86,44,87,56],[78,1,79,8],[79,12,80,16],[79,17,80,23],[79,26,80,29],[79,30,80,36],[65,40,67,52],[79,39,80,43],[68,1,69,8],[68,9,69,52],[70,1,73,8],[70,9,73,58],[75,1,76,13],[75,14,76,27],[75,28,76,39],[75,40,76,58],[65,1,67,8],[65,9,67,16],[65,17,67,24],[65,25,67,32],[65,33,67,39],[49,48,50,58],[51,1,58,8],[51,9,58,58],[61,1,64,8],[61,9,64,58],[49,1,50,8],[49,9,50,21],[49,22,50,28],[49,29,50,40],[49,41,50,47],[30,9,34,58],[35,1,38,8],[35,9,38,58],[43,1,48,8],[43,9,48,58],[39,1,40,8],[39,9,40,16],[39,17,40,23],[39,24,40,58],[30,1,34,8],[18,1,22,8],[18,9,22,58],[24,1,29,8],[24,9,25,9],[24,10,25,16],[24,17,29,23],[24,24,29,58],[26,9,27,9],[26,10,27,16],[28,9,29,9],[28,10,29,16],[12,9,12,11],[12,12,12,23],[14,1,17,8],[14,9,17,16],[14,17,17,23],[14,24,17,58],[9,45,10,58],[10,9,10,11],[10,12,10,23],[11,1,12,8],[11,9,11,11],[11,12,11,23],[11,24,12,30],[11,31,12,37],[11,38,12,44],[11,45,12,58],[9,1,10,8],[9,9,9,11],[9,12,9,23],[9,24,10,30],[9,31,10,37],[9,38,10,44],[1,1,2,58],[4,1,5,8],[4,9,5,28],[5,37,5,43],[5,52,5,58],[7,1,8,8],[7,9,8,37],[7,38,8,44],[7,45,8,58]]}
[]
[null,"企業情報シート"]
[]
[]
[null,"会社名",null,null,null,null,null,null,null,"AAA株式会社"]
[null,null,null,null,null,null,null,null,null,null,null,null,null,null,null,null,null,null,null,null,null,null,null,null,null,null,null,null,null,null,null,null,null,null,null,null,"作成日：",null,null,null,null,null,null,null,null,null,null,null,null,null,null,"最終更新日："]
[]
[null,"住　所",null,null,null,null,null,null,null,"XX市XX町X-X-X",null,null,null,null,null,null,null,null,null,null,null,null,null,null,null,null,null,null,null,null,null,null,null,null,null,null,null,null,"H　P",null,null,null,null,null,null,"http://www.aaa.co.jp"]
[]
[null,"代表者",null,null,null,null,null,null,null,"役職",null,null,"代表取締役社長",null,null,null,null,null,null,null,null,null,null,null,"従業員数",null,null,null,null,null,null,"30人",null,null,null,null,null,null,"資本金",null,null,null,null,null,null,"5,000万円"]
[null,null,null,null,null,null,null,null,null,"氏名",null,null,"×山 ×男"]
[null,"担当者",null,null,null,null,null,null,null,"役職",null,null,"人事部長",null,null,null,null,null,null,null,null,null,null,null,"担当者連絡先\n(電話番号）",null,null,null,null,null,null,"XX-XXXX-XXXX",null,null,null,null,null,null,"担当者連絡先\n(メール）",null,null,null,null,null,null,"aaa@aicsc.jp"]
[null,null,null,null,null,null,null,null,null,"氏名",null,null,"×田 ×朗"]
[]
[null,"業　種",null,null,null,null,null,null,null,"製造業",null,null,null,null,null,null,null,"事業内容\n（具体的に）",null,null,null,null,null,null,"・鞄の製造・販売"]
[]
[]
[]
[null,"その他、企業や事業\n内容等に関する情報",null,null,null,null,null,null,null,"・地場産業の伝統的な技術を活かし、高品質な鞄、袋物、ケース、革小物など製造。\n・創業80年の老舗企業で、長年にわたりOME生産の実績がある。"]
[]
[]
[]
[]
[]
[null,"経営課題",null,null,null,null,null,null,null,1,"売上拡大",null,null,null,null,null,null,"（具体的に）",null,null,null,null,null,null,"・オンラインサイトを通じた新規顧客の獲得による売り上げ向上\n・顧客情報の管理、リピータ確保に向けた戦略、戦術の検討"]
[]
[null,null,null,null,null,null,null,null,null,2]
[]
[null,null,null,null,null,null,null,null,null,3]
[]
[null,"経営課題解決のために必要なミッション",null,null,null,null,null,null,null,"・売上拡大に向けた、オンラインでの商品販売サービスの向上\n・自社でのサイト運営、情報発信力の強化（ＳＮＳ、ブログの活用など）"]
[]
[]
[]
[]
[null,"経営課題解決に\n向けた障壁",null,null,null,null,null,null,null,"・オンラインでの商品販売サイトは既に存在しているが、新規顧客へのリーチやオンライン上での顧客サービスが不十分"]
[]
[]
[]
[null,"プロ人材\nニーズ",null,null,null,null,null,null,null,"有",null,null,null,null,null,null,null,"契約形態",null,null,null,null,null,null,"業務委託契約(準委任型)"]
[]
[]
[null,"雇用契約(フルタイム)の場合"]
[null,"将来的に期待する\n役割"]
[]
[]
[]
[]
[]
[null,"想定される役職",null,null,null,null,null,null,null,"プルダウンより選択",null,null,null,null,null,null,null,null,null,null,null,null,"職種",null,null,null,null,null,null,"プルダウンより選択",null,null,null,null,null,null,null,null,null,null,null,"想定年収",null,null,null,null,null,null,"プルダウンより選択"]
[]
[null,"必要とする\n人材像"]
[]
[]
[]
[]
[]
[]
[]
[]
[null,"雇用契約(パートタイム)・業務委託契約(準委任型)・業務委託契約(請負型)の場合"]
[null,"具体的な\n業務内容",null,null,null,null,null,null,null,"・自社サイトに関する定量的、定性的なアクセス解析と競合他社サイトの比較分析\n・オンラインサイトのユーザビリティ向上と広告戦略の強化\n・コンバージョン率アップのための具体的施策の提案"]
[]
[]
[]
[null,"業務開始希望時期",null,null,null,null,null,null,null,"2021-04-01",null,null,null,null,null,null,null,"業務遂行期間",null,null,null,null,null,null,null,"５か月",null,null,null,null,null,null,null,"想定予算",null,null,null,null,null,null,"30万円"]
[]
[]
[null,"業務遂行手段",null,null,null,null,null,null,null,"遠隔業務(電話メールWeb会議等)と月数回の対面会議"]
[]
[null,"必要とする\n人材像",null,null,null,null,null,null,null,"・隣接する業界経験があり、商品知識のある方\n・webを通じた販売戦略の立案、実施の経験がある方"]
[]
[]
[]
[]
[null,"人材ビジネス事業者との初回連絡",null,null,null,null,null,null,null,null,null,null,null,null,"メール",null,null,null,null,null,null,null,null,null,null,null,null,null,"電話の場合対応可能な時間帯",null,null,null,null,null,null,null,null,null,null,null,"随時"]
[]
[]
[null,"　＜拠点処理欄＞"]
[null,null,null,null,null,null,null,null,null,null,null,null,"拠点担当者",null,null,null,null,null,null,null,null,null,null,null,null,null,"番号",null,null,null,null,null,null,null,null,null,null,null,null,"備考"]
[]
[null,"　【企業情報シートの取扱いについて】"]
[null,null,"　　　本シートの記載内容を本事業の登録人材ビジネス事業者に対して情報提供することについて、相談企業から同意あり"]
[]
[null,null,"　　　（金融機関から紹介の場合）本シートの記載内容を紹介元金融機関に対して情報提供することについて、相談企業から同意あり"]
[]
[null,null,"　　確認相手",null,null,null,null,null,null,null,null,null,null,null,null,null,null,null,null,null,"　　確認日時",null,null,null,null,null,null,null,null,null,null,null,null,null,null,null,null,null,"　　確認手法"]
[]
[null,null,"情報提供先（人材ビジネス事業者）"]
[]
[]
[null,null,"　　　本シートの記載内容について、第三者へ提供することについて同意が得られず　　⇒　情報提供はしない"]
[]
[null,null,null,null,null,null,null,null,null,null,null,null,null,null,null,null,null,null,null,null,null,null,null,null,null,null,null,null,null,null,null,null,null,null,null,null,null,null,null,null,null,null,null,null,null,null,null,null,null,null,null,null,null,null,null,null,null,null,"202205_改訂版"]

{"sheet":"人材会社_記入例(雇用契約(フルタイム))","index":9,"n_rows":94,"n_cols":59,"rows_kept":94,"cut":false,"hidden":true,"merged":[[84,2,85,56],[88,2,89,19],[88,20,89,56],[91,2,92,56],[79,44,80,56],[82,2,83,56],[86,2,87,7],[86,8,87,19],[86,20,87,25],[86,26,87,37],[86,38,87,43],[86,44,87,56],[78,1,79,8],[79,12,80,16],[79,17,80,23],[79,26,80,29],[79,30,80,36],[65,40,67,52],[79,39,80,43],[68,1,69,8],[68,9,69,52],[70,1,73,8],[70,9,73,58],[75,1,76,13],[75,14,76,27],[75,28,76,39],[75,40,76,58],[65,1,67,8],[65,9,67,16],[65,17,67,24],[65,25,67,32],[65,33,67,39],[49,48,50,58],[51,1,58,8],[51,9,58,58],[61,1,64,8],[61,9,64,58],[49,1,50,8],[49,9,50,21],[49,22,50,28],[49,29,50,40],[49,41,50,47],[30,9,34,58],[35,1,38,8],[35,9,38,58],[43,1,48,8],[43,9,48,58],[39,1,40,8],[39,9,40,16],[39,17,40,23],[39,24,40,58],[30,1,34,8],[18,1,22,8],[18,9,22,58],[24,1,29,8],[24,9,25,9],[24,10,25,16],[24,17,29,23],[24,24,29,58],[26,9,27,9],[26,10,27,16],[28,9,29,9],[28,10,29,16],[12,9,12,11],[12,12,12,23],[14,1,17,8],[14,9,17,16],[14,17,17,23],[14,24,17,58],[9,45,10,58],[10,9,10,11],[10,12,10,23],[11,1,12,8],[11,9,11,11],[11,12,11,23],[11,24,12,30],[11,31,12,37],[11,38,12,44],[11,45,12,58],[9,1,10,8],[9,9,9,11],[9,12,9,23],[9,24,10,30],[9,31,10,37],[9,38,10,44],[1,1,2,58],[4,1,5,8],[4,9,5,28],[5,37,5,43],[5,52,5,58],[7,1,8,8],[7,9,8,37],[7,38,8,44],[7,45,8,58]]}
[]
[null,"企業情報シート"]
[]
[]
[null,"会社名",null,null,null,null,null,null,null,"AAA株式会社"]
[null,null,null,null,null,null,null,null,null,null,null,null,null,null,null,null,null,null,null,null,null,null,null,null,null,null,null,null,null,null,null,null,null,null,null,null,"作成日：","2021-07-16",null,null,null,null,null,null,null,null,null,null,null,null,null,"最終更新日："]
[]
[null,"住　所",null,null,null,null,null,null,null,"XX市XX町X-X-X",null,null,null,null,null,null,null,null,null,null,null,null,null,null,null,null,null,null,null,null,null,null,null,null,null,null,null,null,"H　P",null,null,null,null,null,null,"http://www.aaa.co.jp"]
[]
[null,"代表者",null,null,null,null,null,null,null,"役職",null,null,"代表取締役",null,null,null,null,null,null,null,null,null,null,null,"従業員数",null,null,null,null,null,null,"50人",null,null,null,null,null,null,"資本金",null,null,null,null,null,null,"1,800万円"]
[null,null,null,null,null,null,null,null,null,"氏名",null,null,"×山 ×男"]
[null,"担当者",null,null,null,null,null,null,null,"役職",null,null,"事業部長",null,null,null,null,null,null,null,null,null,null,null,"担当者連絡先\n(電話番号）",null,null,null,null,null,null,"XX-XXXX-XXXX",null,null,null,null,null,null,"担当者連絡先\n(メール）",null,null,null,null,null,null,"aaa@aicsc.jp"]
[null,null,null,null,null,null,null,null,null,"氏名",null,null,"×田 ×朗"]
[]
[null,"業　種",null,null,null,null,null,null,null,"食品販売",null,null,null,null,null,null,null,"事業内容\n（具体的に）",null,null,null,null,null,null,"・地元でとれる食材を中心とした加工食品や珍味を販売"]
[]
[]
[]
[null,"その他、企業や事業\n内容等に関する情報",null,null,null,null,null,null,null,"・創業100年と地元での知名度が高く取引先等の基盤は確保できている\n・商品構成は、３００以上であり、その中でも独自開発した「高級ふりかけ」は、目玉商品。地元で知らない人はいない"]
[]
[]
[]
[]
[]
[null,"経営課題",null,null,null,null,null,null,null,1,"海外事業展開",null,null,null,null,null,null,"（具体的に）",null,null,null,null,null,null,"・現状、国内売上は安定はしているが、頭打ち状態。\n・試験的に実施した海外展開事業（展示会への出店）では、そこそこの売上を出したが、それを本格的な事業にできていない\n"]
[]
[null,null,null,null,null,null,null,null,null,2,"人材の確保・育成"]
[]
[null,null,null,null,null,null,null,null,null,3]
[]
[null,"経営課題解決のために必要なミッション",null,null,null,null,null,null,null,"・海外出店戦略の策定（現地市場調査、対象国選定、オペレーションモデル策定、投資スキーム策定等）\n・出店に伴う諸準備（現地の調達・物流・インフラに関わるステークホルダーとの事前交渉を含めたサプライチェーン構築、出店法人設立各種許認可申請等）"]
[]
[]
[]
[]
[null,"経営課題解決に\n向けた障壁",null,null,null,null,null,null,null,"・海外事業責任者（責任者クラスとして、海外戦略を策定するとともに、出店初期においては自ら現地へ乗り出し、出店準備を行う。）を担える人材が社内に不在\n・都市部から事業責任者クラスの人材を雇ったことがなく、どのように採用してよいか分からない"]
[]
[]
[]
[null,"プロ人材\nニーズ",null,null,null,null,null,null,null,"有",null,null,null,null,null,null,null,"契約形態",null,null,null,null,null,null,"雇用契約(フルタイム)"]
[]
[]
[null,"雇用契約(フルタイム)の場合"]
[null,"将来的に期待する\n役割",null,null,null,null,null,null,null,"・２、３年後には息子への事業承継を検討しており、それまでに海外事業を軌道に乗せるために、事業を中心的に動かすこと。\n・事業承継に合わせた社内の世代交代も必要であり、そのための組織戦略の検討、構築と必要な人材の確保と育成にも取り組んでほしい。\n・組織戦略の遂行にあたり、社内の管理職と円滑なコミュニケーションを図りながら、よりよい組織風土の構築に貢献してほしい。"]
[]
[]
[]
[]
[]
[null,"想定される役職",null,null,null,null,null,null,null,"部長相当",null,null,null,null,null,null,null,null,null,null,null,null,"職種",null,null,null,null,null,null,"海外展開",null,null,null,null,null,null,null,null,null,null,null,"想定年収",null,null,null,null,null,null,"601～700万円"]
[]
[null,"必要とする\n人材像",null,null,null,null,null,null,null,"・ビジネスレベルの英語と中国語を習得していること\n・海外勤務の経験（願わくばアジア）があり、現地でのマネジメントの経験が数年以上あること\n・食品業界における営業や販路開拓に実績があり、１０～２０人のチームをまとめられること\n・協調的でリーダーシップがあり、一つ一つの仕事を丁寧に取り組む姿勢を率先垂範で実践できること\n・テレワークやリモートワークの導入、推進に対して対応できること"]
[]
[]
[]
[]
[]
[]
[]
[]
[null,"雇用契約(パートタイム)・業務委託契約(準委任型)・業務委託契約(請負型)の場合"]
[null,"具体的な\n業務内容"]
[]
[]
[]
[null,"業務開始希望時期",null,null,null,null,null,null,null,null,null,null,null,null,null,null,null,"業務遂行期間",null,null,null,null,null,null,null,null,null,null,null,null,null,null,null,"想定予算"]
[]
[]
[null,"業務遂行手段",null,null,null,null,null,null,null,"プルダウンより選択"]
[]
[null,"必要とする\n人材像"]
[]
[]
[]
[]
[null,"人材ビジネス事業者との初回連絡",null,null,null,null,null,null,null,null,null,null,null,null,"メール",null,null,null,null,null,null,null,null,null,null,null,null,null,"電話の場合対応可能な時間帯",null,null,null,null,null,null,null,null,null,null,null,"プルダウンより選択"]
[]
[]
[null,"　＜拠点処理欄＞"]
[null,null,null,null,null,null,null,null,null,null,null,null,"拠点担当者",null,null,null,null,null,null,null,null,null,null,null,null,null,"番号",null,null,null,null,null,null,null,null,null,null,null,null,"備考"]
[]
[null,"　【企業情報シートの取扱いについて】"]
[null,null,"　　　本シートの記載内容を本事業の登録人材ビジネス事業者に対して情報提供することについて、相談企業から同意あり"]
[]
[null,null,"　　　（金融機関から紹介の場合）本シートの記載内容を紹介元金融機関に対して情報提供することについて、相談企業から同意あり"]
[]
[null,null,"　　確認相手",null,null,null,null,null,null,null,null,null,null,null,null,null,null,null,null,null,"　　確認日時",null,null,null,null,null,null,null,null,null,null,null,null,null,null,null,null,null,"　　確認手法"]
[]
[null,null,"情報提供先（人材ビジネス事業者）"]
[]
[]
[null,null,"　　　本シートの記載内容について、第三者へ提供することについて同意が得られず　　⇒　情報提供はしない"]
[]
[null,null,null,null,null,null,null,null,null,null,null,null,null,null,null,null,null,null,null,null,null,null,null,null,null,null,null,null,null,null,null,null,null,null,null,null,null,null,null,null,null,null,null,null,null,null,null,null,null,null,null,null,null,null,null,null,null,null,"202205_改訂版"]

{"sheet":"大企業_記入例(雇用契約(フルタイム))","index":10,"n_rows":99,"n_cols":60,"rows_kept":99,"cut":false,"hidden":true,"merged":[[90,2,91,58],[80,2,81,58],[82,2,83,58],[84,2,85,58],[86,2,87,58],[88,2,89,58],[92,44,93,58],[95,2,96,58],[92,2,93,7],[92,8,93,19],[92,20,93,25],[92,26,93,37],[92,38,93,43],[67,1,69,8],[67,9,69,52],[70,1,73,8],[70,9,73,58],[76,1,77,11],[77,37,78,45],[77,46,78,58],[54,1,57,8],[54,9,57,58],[60,1,63,8],[60,9,63,58],[64,1,66,8],[64,9,66,16],[64,17,66,24],[64,25,66,32],[64,33,66,39],[64,40,66,52],[47,1,50,8],[47,9,50,58],[51,1,53,8],[51,9,53,32],[51,33,53,39],[51,40,53,52],[33,1,37,8],[33,9,37,58],[38,1,40,8],[38,9,40,58],[41,1,44,8],[41,9,44,16],[41,17,44,23],[41,24,44,58],[18,1,22,8],[18,9,22,58],[24,1,32,8],[24,9,26,9],[24,10,26,16],[24,17,32,23],[24,24,32,58],[27,9,29,9],[27,10,29,16],[30,9,32,9],[30,10,32,16],[11,36,12,43],[11,44,12,49],[14,1,17,8],[14,9,17,16],[14,17,17,23],[14,24,17,58],[11,50,12,58],[11,1,12,8],[11,9,12,28],[11,29,12,35],[7,50,8,58],[9,1,10,8],[9,9,10,28],[9,29,10,35],[9,36,10,43],[9,44,10,49],[9,50,10,58],[7,1,8,8],[7,9,8,28],[7,29,8,35],[7,36,8,43],[7,44,8,49],[1,1,2,58],[4,1,5,8],[4,9,5,28],[5,37,5,43],[5,52,5,58]]}
[]
[null,"企業情報シート（大企業連携用）"]
[]
[]
[null,"会社名",null,null,null,null,null,null,null,"AAA株式会社"]
[null,null,null,null,null,null,null,null,null,null,null,null,null,null,null,null,null,null,null,null,null,null,null,null,null,null,null,null,null,null,null,null,null,null,null,null,"作成日：",null,null,null,null,null,null,null,null,null,null,null,null,null,null,"最終更新日："]
[]
[null,"住所",null,null,null,null,null,null,null,"XX市XX町X-X-X",null,null,null,null,null,null,null,null,null,null,null,null,null,null,null,null,null,null,null,"電話番号",null,null,null,null,null,null,"XX-XXXX-XXXX",null,null,null,null,null,null,null,"ＨＰ",null,null,null,null,null,"http://www.aaa.co.jp"]
[]
[null,"代表者名",null,null,null,null,null,null,null,"×山 ×男",null,null,null,null,null,null,null,null,null,null,null,null,null,null,null,null,null,null,null,"従業員数",null,null,null,null,null,null,"50人",null,null,null,null,null,null,null,"資本金",null,null,null,null,null,"1,800万円"]
[]
[null,"担当者",null,null,null,null,null,null,null,"×田 ×朗",null,null,null,null,null,null,null,null,null,null,null,null,null,null,null,null,null,null,null,"役職",null,null,null,null,null,null,"人事部長",null,null,null,null,null,null,null,"連絡先",null,null,null,null,null,"電場番号または\nメールアドレス"]
[]
[]
[null,"業種",null,null,null,null,null,null,null,"食品販売",null,null,null,null,null,null,null,"事業内容\n（具体的に）",null,null,null,null,null,null,"・地元でとれる食材を中心とした加工食品や珍味を販売"]
[]
[]
[]
[null,"その他、企業や事業内容等\nに関する情報",null,null,null,null,null,null,null,"・創業100年と地元での知名度が高く取引先等の基盤は確保できている\n・商品構成は、３００以上であり、その中でも独自開発した「高級ふりかけ」は、目玉商品。地元で知らない人はいない"]
[]
[]
[]
[]
[]
[null,"経営課題",null,null,null,null,null,null,null,1,"海外事業展開",null,null,null,null,null,null,"（具体的に）",null,null,null,null,null,null,"・現状、国内売上は安定はしているが、頭打ち状態。\n・試験的に実施した海外展開事業（展示会への出店）では、そこそこの売上を出したが、それを本格的な事業にできていない\n"]
[]
[]
[null,null,null,null,null,null,null,null,null,2,"人材の確保・育成"]
[]
[]
[null,null,null,null,null,null,null,null,null,3]
[]
[]
[null,"経営課題解決のために必要なミッション",null,null,null,null,null,null,null,"・海外出店戦略の策定（現地市場調査、対象国選定、オペレーションモデル策定、投資スキーム策定等）\n・出店に伴う諸準備（現地の調達・物流・インフラに関わるステークホルダーとの事前交渉を含めたサプライチェーン構築、出店法人設立各種許認可申請等）"]
[]
[]
[]
[]
[null,"経営課題解決に\n向けた障壁",null,null,null,null,null,null,null,"・海外事業責任者（責任者クラスとして、海外戦略を策定するとともに、出店初期においては自ら現地へ乗り出し、出店準備を行う。）を担える人材が社内に不在\n・都市部から事業責任者クラスの人材を雇ったことがなく、どのように採用してよいか分からない"]
[]
[]
[null,"プロ人材\nニーズ",null,null,null,null,null,null,null,"有",null,null,null,null,null,null,null,"契約形態",null,null,null,null,null,null,"雇用契約(フルタイム)"]
[]
[]
[]
[]
[null,"雇用契約(フルタイム)の場合"]
[null,"将来的に期待する\n役割",null,null,null,null,null,null,null,"・２、３年後には息子への事業承継を検討しており、それまでに海外事業を軌道に乗せるために、事業を中心的に動かすこと"]
[]
[]
[]
[null,"想定される\n役職",null,null,null,null,null,null,null,"部長クラス",null,null,null,null,null,null,null,null,null,null,null,null,null,null,null,null,null,null,null,null,null,null,null,"想定年収",null,null,null,null,null,null,"601～700万円"]
[]
[]
[null,"必要とする\n人材像",null,null,null,null,null,null,null,"・ビジネスレベルの英語と中国語を習得していること\n・海外勤務経験（願わくばアジア）が数年以上あること\n・営業や販路開拓に実績があり、１０～２０人のチームをまとめられること"]
[]
[]
[]
[]
[null,"雇用契約(パートタイム)・業務委託契約(準委任型)・業務委託契約(請負型)の場合"]
[null,"具体的な\n業務内容"]
[]
[]
[]
[null,"業務開始希望時期",null,null,null,null,null,null,null,null,null,null,null,null,null,null,null,"業務遂行期間",null,null,null,null,null,null,null,null,null,null,null,null,null,null,null,"想定予算"]
[]
[]
[null,"業務遂行手段"]
[]
[]
[null,"必要とする\n人材像"]
[]
[]
[]
[]
[]
[null,"　＜拠点処理欄＞"]
[null,null,null,null,null,null,null,null,null,null,null,null,null,null,null,null,null,null,null,null,null,null,null,null,null,null,null,null,null,null,null,null,null,null,null,null,null,"拠点担当者"]
[]
[null,"　【企業情報シートの取扱いについて】"]
[null,null,"①　　　本シートの記載内容を本事業の拠点のパートナーである企業に対して、人材交流を目的に情報提供することについて、相談企業から同意あり"]
[]
[null,null,"　　　　情報提供を希望しない企業名（　　　　　　　　　　　　　　　　　　　　　　　　　　　　　　　　　　　　　　　　　　　　　　　　　　　　　　　　）"]
[]
[null,null,"②　　　本シートの記載内容を本事業の全国事務局のパートナーである企業に対して、人材交流を目的に情報提供することについて、相談企業から同意あり"]
[]
[null,null,"　　　　情報提供を希望しない企業名（　　　　　　　　　　　　　　　　　　　　　　　　　　　　　　　　　　　　　　　　　　　　　　　　　　　　　　　　）"]
[]
[null,null,"③　　 本シートの記載内容を（公財）産業雇用安定センターに対して情報提供することについて、相談企業から同意あり"]
[]
[null,null,"④　　 （金融機関から紹介の場合）本シートの記載内容を紹介元金融機関に対して情報提供することについて、相談企業から同意あり"]
[]
[null,null,"確認相手",null,null,null,null,null,null,null,null,null,null,null,null,null,null,null,null,null,"確認日時",null,null,null,null,null,null,null,null,null,null,null,null,null,null,null,null,null,"確認手法"]
[]
[]
[null,null,"　　     本シートの記載内容について、第三者へ提供することについて同意が得られず　　⇒　情報提供はしない"]
[]
[]
[null,null,null,null,null,null,null,null,null,null,null,null,null,null,null,null,null,null,null,null,null,null,null,null,null,null,null,null,null,null,null,null,null,null,null,null,null,null,null,null,null,null,null,null,null,null,null,null,null,null,null,null,null,null,null,null,null,null,null,"202205_改訂版"]

{"sheet":"大企業_記入例(雇用契約(フルタイム)以外)","index":11,"n_rows":98,"n_cols":60,"rows_kept":98,"cut":false,"hidden":true,"merged":[[89,2,90,58],[79,2,80,58],[81,2,82,58],[83,2,84,58],[85,2,86,58],[87,2,88,58],[91,44,92,58],[94,2,95,58],[91,2,92,7],[91,8,92,19],[91,20,92,25],[91,26,92,37],[91,38,92,43],[66,1,68,8],[66,9,68,52],[69,1,72,8],[69,9,72,58],[75,1,76,11],[76,37,77,45],[76,46,77,58],[53,1,56,8],[53,9,56,58],[59,1,62,8],[59,9,62,58],[63,1,65,8],[63,9,65,16],[63,17,65,24],[63,25,65,32],[63,33,65,39],[63,40,65,52],[46,1,49,8],[46,9,49,58],[50,1,52,8],[50,9,52,32],[50,33,52,39],[50,40,52,52],[33,1,37,8],[33,9,37,58],[38,1,39,8],[38,9,39,58],[40,1,43,8],[40,9,43,16],[40,17,43,23],[40,24,43,58],[18,1,22,8],[18,9,22,58],[24,1,32,8],[24,9,26,9],[24,10,26,16],[24,17,32,23],[24,24,32,58],[27,9,29,9],[27,10,29,16],[30,9,32,9],[30,10,32,16],[11,36,12,43],[11,44,12,49],[14,1,17,8],[14,9,17,16],[14,17,17,23],[14,24,17,58],[11,50,12,58],[11,1,12,8],[11,9,12,28],[11,29,12,35],[7,50,8,58],[9,1,10,8],[9,9,10,28],[9,29,10,35],[9,36,10,43],[9,44,10,49],[9,50,10,58],[7,1,8,8],[7,9,8,28],[7,29,8,35],[7,36,8,43],[7,44,8,49],[1,1,2,58],[4,1,5,8],[4,9,5,28],[5,37,5,43],[5,52,5,58]]}
[]
[null,"企業情報シート（大企業連携用）"]
[]
[]
[null,"会社名",null,null,null,null,null,null,null,"AAA株式会社"]
[null,null,null,null,null,null,null,null,null,null,null,null,null,null,null,null,null,null,null,null,null,null,null,null,null,null,null,null,null,null,null,null,null,null,null,null,"作成日：",null,null,null,null,null,null,null,null,null,null,null,null,null,null,"最終更新日："]
[]
[null,"住所",null,null,null,null,null,null,null,"XX市XX町X-X-X",null,null,null,null,null,null,null,null,null,null,null,null,null,null,null,null,null,null,null,"電話番号",null,null,null,null,null,null,"XX-XXXX-XXXX",null,null,null,null,null,null,null,"ＨＰ",null,null,null,null,null,"http://www.aaa.co.jp"]
[]
[null,"代表者名",null,null,null,null,null,null,null,"×山 ×男",null,null,null,null,null,null,null,null,null,null,null,null,null,null,null,null,null,null,null,"従業員数",null,null,null,null,null,null,"30人",null,null,null,null,null,null,null,"資本金",null,null,null,null,null,"5,000万円"]
[]
[null,"担当者",null,null,null,null,null,null,null,"×田 ×朗",null,null,null,null,null,null,null,null,null,null,null,null,null,null,null,null,null,null,null,"役職",null,null,null,null,null,null,"人事部長",null,null,null,null,null,null,null,"連絡先",null,null,null,null,null,"電場番号または\nメールアドレス"]
[]
[]
[null,"業種",null,null,null,null,null,null,null,"製造業",null,null,null,null,null,null,null,"事業内容\n（具体的に）",null,null,null,null,null,null,"・鞄の製造・販売"]
[]
[]
[]
[null,"その他、企業や事業内容等\nに関する情報",null,null,null,null,null,null,null,"・地場産業の伝統的な技術を活かし、高品質な鞄、袋物、ケース、革小物などを製造。\n・創業80年の老舗企業で、長年にわたりOEM生産の実績がある。"]
[]
[]
[]
[]
[]
[null,"経営課題",null,null,null,null,null,null,null,1,"売上拡大",null,null,null,null,null,null,"（具体的に）",null,null,null,null,null,null,"・オンラインサイトを通じた新規顧客の獲得による売り上げ向上"]
[]
[]
[null,null,null,null,null,null,null,null,null,2]
[]
[]
[null,null,null,null,null,null,null,null,null,3]
[]
[]
[null,"経営課題解決のために必要なミッション",null,null,null,null,null,null,null,"・売上拡大に向けた、オンラインでの商品販売サービスの向上"]
[]
[]
[]
[]
[null,"経営課題解決に\n向けた障壁",null,null,null,null,null,null,null,"・オンラインでの商品販売サイトは既に存在しているが、新規顧客へのリーチやオンライン上での顧客サービスが不十分"]
[]
[null,"プロ人材\nニーズ",null,null,null,null,null,null,null,"有",null,null,null,null,null,null,null,"契約形態",null,null,null,null,null,null,"業務委託契約(準委任型)"]
[]
[]
[]
[]
[null,"雇用契約(フルタイム)の場合"]
[null,"将来的に期待する\n役割"]
[]
[]
[]
[null,"想定される\n役職",null,null,null,null,null,null,null,null,null,null,null,null,null,null,null,null,null,null,null,null,null,null,null,null,null,null,null,null,null,null,null,"想定年収"]
[]
[]
[null,"必要とする\n人材像"]
[]
[]
[]
[]
[null,"雇用契約(パートタイム)・業務委託契約(準委任型)・業務委託契約(請負型)の場合"]
[null,"具体的な\n業務内容",null,null,null,null,null,null,null,"・オンラインサイトのユーザビリティ向上と広告戦略の強化"]
[]
[]
[]
[null,"業務開始希望時期",null,null,null,null,null,null,null,"2021-04-01",null,null,null,null,null,null,null,"業務遂行期間",null,null,null,null,null,null,null,"５か月",null,null,null,null,null,null,null,"想定予算",null,null,null,null,null,null,"30万円"]
[]
[]
[null,"業務遂行手段",null,null,null,null,null,null,null,"遠隔業務(電話メールWeb会議等)と月数回の対面会議"]
[]
[]
[null,"必要とする\n人材像",null,null,null,null,null,null,null,"・webを通じた販売戦略の経験がある方"]
[]
[]
[]
[]
[]
[null,"　＜拠点処理欄＞"]
[null,null,null,null,null,null,null,null,null,null,null,null,null,null,null,null,null,null,null,null,null,null,null,null,null,null,null,null,null,null,null,null,null,null,null,null,null,"拠点担当者"]
[]
[null,"　【企業情報シートの取扱いについて】"]
[null,null,"①　　　本シートの記載内容を本事業の拠点のパートナーである企業に対して、人材交流を目的に情報提供することについて、相談企業から同意あり"]
[]
[null,null,"　　　　情報提供を希望しない企業名（　　　　　　　　　　　　　　　　　　　　　　　　　　　　　　　　　　　　　　　　　　　　　　　　　　　　　　　　）"]
[]
[null,null,"②　　　本シートの記載内容を本事業の全国事務局のパートナーである企業に対して、人材交流を目的に情報提供することについて、相談企業から同意あり"]
[]
[null,null,"　　　　情報提供を希望しない企業名（　　　　　　　　　　　　　　　　　　　　　　　　　　　　　　　　　　　　　　　　　　　　　　　　　　　　　　　　）"]
[]
[null,null,"③　　 本シートの記載内容を（公財）産業雇用安定センターに対して情報提供することについて、相談企業から同意あり"]
[]
[null,null,"④　　 （金融機関から紹介の場合）本シートの記載内容を紹介元金融機関に対して情報提供することについて、相談企業から同意あり"]
[]
[null,null,"確認相手",null,null,null,null,null,null,null,null,null,null,null,null,null,null,null,null,null,"確認日時",null,null,null,null,null,null,null,null,null,null,null,null,null,null,null,null,null,"確認手法"]
[]
[]
[null,null,"　　     本シートの記載内容について、第三者へ提供することについて同意が得られず　　⇒　情報提供はしない"]
[]
[]
[null,null,null,null,null,null,null,null,null,null,null,null,null,null,null,null,null,null,null,null,null,null,null,null,null,null,null,null,null,null,null,null,null,null,null,null,null,null,null,null,null,null,null,null,null,null,null,null,null,null,null,null,null,null,null,null,null,null,null,"202205_改訂版"]